fUSD/lending_fUSD_20241221
["ID","MTS","AMOUNT","RATE_DAILY","PERIOD"]
[346234698,1734795594275,-150.0,0.00019602,2]
[346234699,1734795594303,-150.0,0.00019606,2]
[346234700,1734795594330,-2594.267,0.00019609,2]
[346234701,1734795594353,-174.121,0.00019609,2]
[346234702,1734795594380,-150.0,0.00019614,2]
[346234703,1734795594409,-150.0,0.00019615,2]
[346234704,1734795594437,-369.17,0.00019616,2]
[346234705,1734795594461,-406.42,0.00019616,2]
[346234706,1734795594484,-770.39,0.00019616,2]
[346234707,1734795594511,-770.39,0.00019616,2]
[346234708,1734795594536,-770.39,0.00019616,2]
[346234709,1734795594563,-150.0,0.0001962,2]
[346234710,1734795594591,-150.0,0.00019627,2]
[346234711,1734795594619,-150.0,0.00019638,2]
[346234712,1734795594646,-150.0,0.00019644,2]
[346234713,1734795594674,-150.0,0.00019645,2]
[346234714,1734795594701,-150.0,0.00019649,2]
[346234715,1734795594728,-150.0,0.00019651,2]
[346234716,1734795594757,-150.0,0.00019656,2]
[346234717,1734795594787,-150.0,0.00019658,2]
[346234718,1734795594812,-660.204767,0.00019662,2]
[346234719,1734795594839,-660.204767,0.00019662,2]
[346234720,1734795594863,-151.0,0.00019662,2]
[346234721,1734795594887,-253.771716,0.00019662,2]
[346234722,1734795594913,-16084.8105364,0.00019662,2]
[346234723,1734795594938,-26816.64093843,0.00019662,2]
[346234724,1734795594966,-150.0,0.00019665,2]
[346234725,1734795594994,-150.0,0.00019665,2]
[346234726,1734795595022,-150.0,0.00019666,2]
[346234727,1734795595049,-150.0,0.00019667,2]
[346234728,1734795595076,-151.0,0.00019672,2]
[346234729,1734795595102,-150.0,0.00019674,2]
[346234730,1734795595128,-150.0,0.00019677,2]
[346234731,1734795595157,-150.0,0.00019683,2]
[346234732,1734795595184,-150.0,0.00019685,2]
[346234733,1734795595210,-150.0,0.00019685,2]
[346234734,1734795595245,-150.0,0.00019687,2]
[346234735,1734795595276,-150.0,0.00019688,2]
[346234736,1734795595304,-150.0,0.00019689,2]
[346234737,1734795595332,-150.0,0.00019694,2]
[346234738,1734795595359,-150.0,0.00019694,2]
[346234739,1734795595384,-345.0,0.000197,2]
[346234740,1734795595411,-150.0,0.00019703,2]
[346234741,1734795595440,-150.0,0.00019706,2]
[346234742,1734795595466,-202.0,0.0001971,2]
[346234743,1734795595491,-202.0,0.0001971,2]
[346234744,1734795595517,-150.0,0.0001972,2]
[346234745,1734795595544,-150.0,0.00019721,2]
[346234746,1734795595571,-666.0,0.00019725,2]
[346234747,1734795595597,-150.0,0.00019725,2]
[346234748,1734795595623,-271.902231,0.00019726,2]
[346234749,1734795595649,-329.522709,0.00019726,2]
[346234750,1734795595675,-424.65345612,0.00019726,2]
[346234751,1734795595700,-500.0,0.00019726,2]
[346234752,1734795595726,-500.0,0.00019726,2]
[346234753,1734795595751,-500.0,0.00019726,2]
[346234754,1734795595776,-500.0,0.00019726,2]
[346234755,1734795595801,-566.12377539,0.00019726,2]
[346234756,1734795595828,-500.0,0.00019726,2]
[346234757,1734795595854,-500.0,0.00019726,2]
[346234758,1734795595879,-500.0,0.00019726,2]
[346234759,1734795595905,-500.0,0.00019726,2]
[346234760,1734795595930,-500.0,0.00019726,2]
[346234761,1734795595956,-500.0,0.00019726,2]
[346234762,1734795595983,-500.0,0.00019726,2]
[346234763,1734795596009,-500.0,0.00019726,2]
[346234764,1734795596036,-500.0,0.00019726,2]
[346234765,1734795596063,-500.0,0.00019726,2]
[346234766,1734795596090,-500.0,0.00019726,2]
[346234767,1734795596117,-500.0,0.00019726,2]
[346234768,1734795596143,-500.0,0.00019726,2]
[346234769,1734795596169,-500.0,0.00019726,2]
[346234770,1734795596194,-500.0,0.00019726,2]
[346234771,1734795596220,-500.0,0.00019726,2]
[346234772,1734795596246,-500.0,0.00019726,2]
[346234773,1734795596272,-500.0,0.00019726,2]
[346234774,1734795596297,-500.0,0.00019726,2]
[346234775,1734795596323,-500.0,0.00019726,2]
[346234776,1734795596347,-703.98,0.00019726,2]
[346234777,1734795596372,-500.0,0.00019726,2]
[346234778,1734795596398,-500.0,0.00019726,2]
[346234779,1734795596424,-500.0,0.00019726,2]
[346234780,1734795596449,-500.0,0.00019726,2]
[346234781,1734795596474,-500.0,0.00019726,2]
[346234782,1734795596500,-500.0,0.00019726,2]
[346234783,1734795596526,-500.0,0.00019726,2]
[346234784,1734795596551,-500.0,0.00019726,2]
[346234785,1734795596580,-500.0,0.00019726,2]
[346234786,1734795596606,-500.0,0.00019726,2]
[346234787,1734795596632,-500.0,0.00019726,2]
[346234788,1734795596657,-200.97176279,0.00019726,2]
[346234789,1734795596681,-500.0,0.00019726,2]
[346234790,1734795596707,-500.0,0.00019726,2]
[346234791,1734795596731,-500.0,0.00019726,2]
[346234792,1734795596759,-574.532451,0.00019726,2]
[346234793,1734795596785,-500.0,0.00019726,2]
[346234794,1734795596811,-500.0,0.00019726,2]
[346234795,1734795596836,-500.0,0.00019726,2]
[346234796,1734795596864,-656.83,0.00019726,2]
[346234797,1734795597127,-500.0,0.00019726,2]
[346234798,1734795597154,-500.0,0.00019726,2]
[346234799,1734795597179,-500.0,0.00019726,2]
[346234800,1734795597204,-500.0,0.00019726,2]
[346234801,1734795597228,-500.0,0.00019726,2]
[346234802,1734795597254,-500.0,0.00019726,2]
[346234803,1734795597281,-205.25228308,0.00019726,2]
[346234804,1734795597307,-500.0,0.00019726,2]
[346234805,1734795597332,-541.494619,0.00019726,2]
[346234806,1734795597356,-541.494619,0.00019726,2]
[346234807,1734795597381,-541.494619,0.00019726,2]
[346234808,1734795597405,-541.494619,0.00019726,2]
[346234809,1734795597435,-351.0,0.00019726,2]
[346234810,1734795597459,-500.0,0.00019726,2]
[346234811,1734795597482,-500.0,0.00019726,2]
[346234812,1734795597508,-500.0,0.00019726,2]
[346234813,1734795597531,-500.0,0.00019726,2]
[346234814,1734795597555,-500.0,0.00019726,2]
[346234815,1734795597579,-500.0,0.00019726,2]
[346234816,1734795597604,-500.0,0.00019726,2]
[346234817,1734795597627,-500.0,0.00019726,2]
[346234818,1734795597651,-500.0,0.00019726,2]
[346234819,1734795597674,-500.0,0.00019726,2]
[346234820,1734795597699,-568.7,0.00019726,2]
[346234821,1734795597724,-500.0,0.00019726,2]
[346234822,1734795597750,-500.0,0.00019726,2]
[346234823,1734795597775,-500.0,0.00019726,2]
[346234824,1734795597803,-731.7,0.00019726,2]
[346234825,1734795597828,-500.0,0.00019726,2]
[346234826,1734795597853,-500.0,0.00019726,2]
[346234827,1734795597877,-500.0,0.00019726,2]
[346234828,1734795597902,-500.0,0.00019726,2]
[346234829,1734795597926,-333.14,0.00019726,2]
[346234830,1734795597950,-500.0,0.00019726,2]
[346234831,1734795597975,-500.0,0.00019726,2]
[346234832,1734795598001,-396.42,0.00019726,2]
[346234833,1734795598026,-500.0,0.00019726,2]
[346234834,1734795598052,-643.87,0.00019726,2]
[346234835,1734795598077,-302.27346418,0.00019726,2]
[346234836,1734795598102,-567.95424658,0.00019726,2]
[346234837,1734795598135,-500.0,0.00019726,2]
[346234838,1734795598160,-500.0,0.00019726,2]
[346234839,1734795598184,-500.0,0.00019726,2]
[346234840,1734795598208,-500.0,0.00019726,2]
[346234841,1734795598236,-500.0,0.00019726,2]
[346234842,1734795598262,-500.0,0.00019726,2]
[346234843,1734795598286,-500.0,0.00019726,2]
[346234844,1734795598310,-323.72,0.00019726,2]
[346234845,1734795598334,-500.0,0.00019726,2]
[346234846,1734795598358,-500.0,0.00019726,2]
[346234847,1734795598381,-500.0,0.00019726,2]
[346234848,1734795598406,-500.0,0.00019726,2]
[346234849,1734795598433,-500.0,0.00019726,2]
[346234850,1734795598456,-500.0,0.00019726,2]
[346234851,1734795598480,-500.0,0.00019726,2]
[346234852,1734795598505,-500.0,0.00019726,2]
[346234853,1734795598528,-500.0,0.00019726,2]
[346234854,1734795598552,-500.0,0.00019726,2]
[346234855,1734795598576,-500.0,0.00019726,2]
[346234856,1734795598601,-500.0,0.00019726,2]
[346234857,1734795598625,-250.51,0.00019726,2]
[346234858,1734795598650,-500.0,0.00019726,2]
[346234859,1734795598673,-500.0,0.00019726,2]
[346234860,1734795598697,-500.0,0.00019726,2]
[346234861,1734795598722,-500.0,0.00019726,2]
[346234862,1734795598749,-500.0,0.00019726,2]
[346234863,1734795598775,-500.0,0.00019726,2]
[346234864,1734795598798,-500.0,0.00019726,2]
[346234865,1734795598823,-500.0,0.00019726,2]
[346234866,1734795598848,-500.0,0.00019726,2]
[346234867,1734795598873,-453.50832094,0.00019726,2]
[346234868,1734795598900,-500.0,0.00019726,2]
[346234869,1734795598924,-500.0,0.00019726,2]
[346234870,1734795598948,-500.0,0.00019726,2]
[346234871,1734795598972,-433.66657971,0.00019726,2]
[346234872,1734795598997,-500.0,0.00019726,2]
[346234873,1734795599023,-151.0,0.00019726,2]
[346234874,1734795599047,-500.0,0.00019726,2]
[346234875,1734795599072,-222.34320592,0.00019726,2]
[346234876,1734795599097,-561.53,0.00019726,2]
[346234877,1734795599121,-555.25158075,0.00019726,2]
[346234878,1734795599145,-500.0,0.00019726,2]
[346234879,1734795599170,-500.0,0.00019726,2]
[346234880,1734795599194,-500.0,0.00019726,2]
[346234881,1734795599218,-602.13361693,0.00019726,2]
[346234882,1734795599244,-500.0,0.00019726,2]
[346234883,1734795599267,-500.0,0.00019726,2]
[346234884,1734795599290,-500.0,0.00019726,2]
[346234885,1734795599315,-500.0,0.00019726,2]
[346234886,1734795599339,-500.0,0.00019726,2]
[346234887,1734795599364,-500.0,0.00019726,2]
[346234888,1734795599387,-500.0,0.00019726,2]
[346234889,1734795599411,-500.0,0.00019726,2]
[346234890,1734795599439,-353.86,0.00019726,2]
[346234891,1734795599463,-500.0,0.00019726,2]
[346234892,1734795599534,-500.0,0.00019726,2]
[346234893,1734795599558,-500.0,0.00019726,2]
[346234894,1734795599587,-708.07,0.00019726,2]
[346234895,1734795599611,-660.204767,0.00019726,2]
[346234896,1734795599634,-660.204765,0.00019726,2]
[346234897,1734795599658,-1009.95,0.00019726,2]
[346234898,1734795599681,-500.0,0.00019726,2]
[346234899,1734795599703,-1780.27,0.00019726,2]
[346234900,1734795599726,-500.0,0.00019726,2]
[346234901,1734795599749,-500.0,0.00019726,2]
[346234902,1734795599771,-500.0,0.00019726,2]
[346234903,1734795599794,-748.88,0.00019726,2]
[346234904,1734795599819,-500.0,0.00019726,2]
[346234905,1734795599844,-500.0,0.00019726,2]
[346234906,1734795599868,-856.5,0.00019726,2]
[346234907,1734795599893,-559.84,0.00019726,2]
[346234908,1734795599918,-500.0,0.00019726,2]
[346234909,1734795599943,-795.04,0.00019726,2]
[346234910,1734795599967,-500.0,0.00019726,2]
[346234911,1734795599992,-776.12,0.00019726,2]
[346234912,1734795600017,-500.0,0.00019726,2]
[346234913,1734795600043,-530.4,0.00019726,2]
[346234914,1734795600068,-653.7,0.00019726,2]
[346234915,1734795600094,-500.0,0.00019726,2]
[346234916,1734795600120,-544.98,0.00019726,2]
[346234917,1734795600146,-500.0,0.00019726,2]
[346234918,1734795600172,-769.59,0.00019726,2]
[346234919,1734795600198,-1443.92,0.00019726,2]
[346234920,1734795600223,-500.0,0.00019726,2]
[346234921,1734795600250,-1930.36,0.00019726,2]
[346234922,1734795600276,-500.0,0.00019726,2]
[346234923,1734795600302,-500.35,0.00019726,2]
[346234924,1734795600326,-922.36,0.00019726,2]
[346234925,1734795600352,-1005.39,0.00019726,2]
[346234926,1734795600378,-587.85,0.00019726,2]
[346234927,1734795600402,-151.0,0.00019726,2]
[346234928,1734795600430,-570.13,0.00019726,2]
[346234929,1734795600455,-500.0,0.00019726,2]
[346234930,1734795600482,-579.6,0.00019726,2]
[346234931,1734795600507,-500.0,0.00019726,2]
[346234932,1734795600533,-500.0,0.00019726,2]
[346234933,1734795600558,-1077.83,0.00019726,2]
[346234934,1734795600582,-547.29,0.00019726,2]
[346234935,1734795600609,-2128.63,0.00019726,2]
[346234936,1734795600635,-942.84,0.00019726,2]
[346234937,1734795600660,-588.47175,0.00019726,2]
[346234938,1734795600685,-500.0,0.00019726,2]
[346234939,1734795600709,-514.16,0.00019726,2]
[346234940,1734795600732,-493.36886941,0.00019726,2]
[346234941,1734795600758,-4151.52,0.00019726,2]
[346234942,1734795600784,-765.17,0.00019726,2]
[346234943,1734795600812,-500.0,0.00019726,2]
[346234944,1734795600838,-1040.89,0.00019726,2]
[346234945,1734795600863,-981.78,0.00019726,2]
[346234946,1734795600887,-500.0,0.00019726,2]
[346234947,1734795600911,-500.0,0.00019726,2]
[346234948,1734795600936,-2160.95,0.00019726,2]
[346234949,1734795600961,-2134.04,0.00019726,2]
[346234950,1734795600986,-539.8,0.00019726,2]
[346234951,1734795601012,-500.0,0.00019726,2]
[346234952,1734795601038,-500.0,0.00019726,2]
[346234953,1734795601064,-599.48,0.00019726,2]
[346234954,1734795601091,-2849.36,0.00019726,2]
[346234955,1734795601116,-1532.96,0.00019726,2]
[346234956,1734795601140,-552.35,0.00019726,2]
[346234957,1734795601164,-661.03,0.00019726,2]
[346234958,1734795601188,-771.43,0.00019726,2]
[346234959,1734795601213,-500.0,0.00019726,2]
[346234960,1734795601239,-500.0,0.00019726,2]
[346234961,1734795601264,-868.57,0.00019726,2]
[346234962,1734795601290,-500.0,0.00019726,2]
[346234963,1734795601314,-500.0,0.00019726,2]
[346234964,1734795601340,-500.0,0.00019726,2]
[346234965,1734795601365,-500.0,0.00019726,2]
[346234966,1734795601389,-500.0,0.00019726,2]
[346234967,1734795601415,-871.38,0.00019726,2]
[346234968,1734795601440,-1128.63,0.00019726,2]
[346234969,1734795601467,-500.0,0.00019726,2]
[346234970,1734795601491,-500.0,0.00019726,2]
[346234971,1734795601516,-500.0,0.00019726,2]
[346234972,1734795601541,-1344.88,0.00019726,2]
[346234973,1734795601564,-500.0,0.00019726,2]
[346234974,1734795601590,-500.0,0.00019726,2]
[346234975,1734795601614,-500.0,0.00019726,2]
[346234976,1734795601639,-2782.35,0.00019726,2]
[346234977,1734795601663,-500.0,0.00019726,2]
[346234978,1734795601686,-1580.0,0.00019726,2]
[346234979,1734795601711,-4184.23,0.00019726,2]
[346234980,1734795601734,-500.0,0.00019726,2]
[346234981,1734795601759,-500.0,0.00019726,2]
[346234982,1734795601783,-500.0,0.00019726,2]
[346234983,1734795601808,-500.0,0.00019726,2]
[346234984,1734795601832,-797.66,0.00019726,2]
[346234985,1734795601856,-500.0,0.00019726,2]
[346234986,1734795601880,-627.92,0.00019726,2]
[346234987,1734795601905,-500.0,0.00019726,2]
[346234988,1734795601930,-500.0,0.00019726,2]
[346234989,1734795601955,-500.0,0.00019726,2]
[346234990,1734795601979,-500.0,0.00019726,2]
[346234991,1734795602003,-500.0,0.00019726,2]
[346234992,1734795602030,-500.0,0.00019726,2]
[346234993,1734795602055,-3083.6,0.00019726,2]
[346234994,1734795602082,-500.0,0.00019726,2]
[346234995,1734795602111,-500.0,0.00019726,2]
[346234996,1734795602136,-500.0,0.00019726,2]
[346234997,1734795602164,-557.74,0.00019726,2]
[346234998,1734795602189,-805.69,0.00019726,2]
[346234999,1734795602214,-494.07450428,0.00019726,2]
[346235000,1734795602240,-463.5,0.00019726,2]
[346235001,1734795602267,-500.0,0.00019726,2]
[346235002,1734795602293,-558.24,0.00019726,2]
[346235003,1734795602320,-500.0,0.00019726,2]
[346235004,1734795602352,-760.1,0.00019726,2]
[346235005,1734795602379,-500.0,0.00019726,2]
[346235006,1734795602406,-500.0,0.00019726,2]
[346235007,1734795602435,-500.0,0.00019726,2]
[346235008,1734795602463,-500.0,0.00019726,2]
[346235009,1734795602490,-500.0,0.00019726,2]
[346235010,1734795602518,-507.48,0.00019726,2]
[346235011,1734795602544,-988.55,0.00019726,2]
[346235012,1734795602573,-1124.0,0.00019726,2]
[346235013,1734795602603,-500.0,0.00019726,2]
[346235014,1734795602629,-500.0,0.00019726,2]
[346235015,1734795602656,-500.0,0.00019726,2]
[346235016,1734795602683,-500.0,0.00019726,2]
[346235017,1734795602710,-563.11,0.00019726,2]
[346235018,1734795602737,-500.0,0.00019726,2]
[346235019,1734795602764,-857.4,0.00019726,2]
[346235020,1734795602791,-500.0,0.00019726,2]
[346235021,1734795602819,-1246.55,0.00019726,2]
[346235022,1734795602848,-1000.38,0.00019726,2]
[346235023,1734795602875,-500.0,0.00019726,2]
[346235024,1734795602901,-649.98,0.00019726,2]
[346235025,1734795602928,-500.0,0.00019726,2]
[346235026,1734795602954,-500.0,0.00019726,2]
[346235027,1734795602980,-500.0,0.00019726,2]
[346235028,1734795603007,-775.64,0.00019726,2]
[346235029,1734795603038,-500.0,0.00019726,2]
[346235030,1734795603069,-590.35,0.00019726,2]
[346235031,1734795603101,-742.64,0.00019726,2]
[346235032,1734795603129,-500.0,0.00019726,2]
[346235033,1734795603158,-500.0,0.00019726,2]
[346235034,1734795603191,-500.0,0.00019726,2]
[346235035,1734795603219,-368.37,0.00019726,2]
[346235036,1734795603248,-1937.97,0.00019726,2]
[346235037,1734795603277,-500.0,0.00019726,2]
[346235038,1734795603307,-1200.92,0.00019726,2]
[346235039,1734795603335,-151.0,0.0001973,2]
[346235040,1734795603362,-212.007,0.0001973,2]
[346235041,1734795603389,-634.624,0.0001973,2]
[346235042,1734795603423,-150.0,0.00019731,2]
[346235043,1734795603455,-150.0,0.00019732,2]
[346235044,1734795603486,-150.0,0.00019734,2]
[346235045,1734795603514,-202.606,0.0001974,2]
[346235046,1734795603540,-591.453,0.0001974,2]
[346235047,1734795603566,-1898.0,0.0001974,2]
[346235048,1734795603594,-925.0,0.0001974,2]
[346235049,1734795603621,-1255.0,0.0001974,2]
[346235050,1734795603650,-3769.0,0.0001974,2]
[346235051,1734795603677,-818.0,0.0001974,2]
[346235052,1734795603703,-3681.0,0.0001974,2]
[346235053,1734795603731,-536.0,0.0001974,2]
[346235054,1734795603761,-13754.0,0.0001974,2]
[346235055,1734795603788,-1170.0,0.0001974,2]
[346235056,1734795603817,-1101.0,0.0001974,2]
[346235057,1734795603851,-150.0,0.00019741,2]
[346235058,1734795603884,-150.0,0.00019741,2]
[346235059,1734795603921,-150.0,0.00019742,2]
[346235060,1734795603954,-150.0,0.00019746,2]
[346235061,1734795603987,-150.0,0.00019747,2]
[346235062,1734795604020,-150.0,0.00019748,2]
[346235063,1734795604049,-500.0,0.00019752,2]
[346235064,1734795604084,-150.0,0.00019759,2]
[346235065,1734795604117,-150.0,0.00019762,2]
[346235066,1734795604151,-150.0,0.00019764,2]
[346235067,1734795604184,-150.0,0.00019768,2]
[346235068,1734795604214,-16084.8105364,0.00019771,2]
[346235069,1734795604244,-26816.64093843,0.00019771,2]
[346235070,1734795604276,-150.0,0.00019777,2]
[346235071,1734795604309,-150.0,0.0001978,2]
[346235072,1734795604351,-150.0,0.00019781,2]
[346235073,1734795604384,-150.0,0.00019799,2]
[346235074,1734795604416,-500.0,0.00019802,2]
[346235075,1734795604446,-500.07,0.00019802,2]
[346235076,1734795604476,-500.0,0.00019802,2]
[346235077,1734795604506,-281.99,0.00019802,2]
[346235078,1734795604534,-1300.17,0.00019802,2]
[346235079,1734795604565,-150.0,0.00019802,2]
[346235080,1734795604613,-150.0,0.00019809,2]
[346235081,1734795604654,-150.0,0.0001981,2]
[346235082,1734795604681,-497.90788596,0.00019815,2]
[346235083,1734795604722,-150.0,0.00019816,2]
[346235084,1734795604761,-541.494619,0.00019818,2]
[346235085,1734795604796,-541.494619,0.00019818,2]
[346235086,1734795604844,-206.0,0.0001982,2]
[346235087,1734795604875,-150.0,0.00019836,2]
[346235088,1734795604904,-150.0,0.00019838,2]
[346235089,1734795604933,-1265.0,0.00019838,2]
[346235090,1734795604977,-2010.0,0.00019838,2]
[346235091,1734795605005,-3886.0,0.00019838,2]
[346235092,1734795605036,-6000.0,0.00019848,7]
[346235093,1734795605065,-16084.8105364,0.0001988,2]
[346235094,1734795605095,-312.0814564,0.0001988,2]
[346235095,1734795605125,-26816.64093843,0.0001988,2]
[346235096,1734795605386,-1088.76300673,0.0001988,2]
[346235097,1734795605412,-3298.78073918,0.0001988,2]
[346235098,1734795605440,-300.97,0.00019891,2]
[346235099,1734795605465,-26257.0,0.00019945,2]
[346235100,1734795605490,-151.47961664,0.00019973,2]
[346235101,1734795605517,-500.0,0.00019973,2]
[346235102,1734795605542,-500.0,0.00019973,2]
[346235103,1734795605568,-500.0,0.00019973,2]
[346235104,1734795605594,-500.0,0.00019973,2]
[346235105,1734795605622,-500.0,0.00019977,2]
[346235106,1734795605649,-666.0,0.00019977,2]
[346235107,1734795605677,-54024.0303042,0.00019977,7]
[346235108,1734795605709,-224663.30135309,0.00019978,5]
[346235109,1734795605737,-541.494619,0.00019978,2]
[346235110,1734795605765,-541.494619,0.00019978,2]
[346235111,1734795605790,-470.11171535,0.00019979,5]
[346235112,1734795605815,-686.81934155,0.00019979,2]
[346235113,1734795605842,-2323516.03550952,0.0001998,2]
[346235114,1734795605868,-1013371.90663351,0.0001998,2]
[346235115,1734795605894,-58863.43164711,0.0001998,2]
[346235116,1734795605922,-541.494619,0.0001998,2]
[346235117,1734795605948,-541.494625,0.0001998,2]
[346235118,1734795605974,-150.0,0.0001998,2]
[346235119,1734795606000,-150.0,0.0001998,2]
[346235120,1734795606026,-266.27736136,0.0001998,2]
[346235121,1734795606052,-795.0,0.0001998,2]
[346235122,1734795606080,-152.51116637,0.0001998,2]
[346235123,1734795606106,-500.0,0.0001998,2]
[346235124,1734795606132,-168.48018926,0.0001998,2]
[346235125,1734795606159,-150.0,0.0001998,2]
[346235126,1734795606185,-150.0,0.0001998,2]
[346235127,1734795606211,-150.0,0.0001998,2]
[346235128,1734795606238,-200.0,0.0001998,2]
[346235129,1734795606264,-1239.0,0.0001998,2]
[346235130,1734795606290,-1437.3514263,0.00019986,2]
[346235131,1734795606316,-500.0,0.0002,2]
[346235132,1734795606345,-6026.86858725,0.0002,2]
[346235133,1734795606371,-297.41767599,0.0002,2]
[346235134,1734795606397,-24999.999997,0.0002,2]
[346235135,1734795606423,-1388.85321932,0.0002,5]
[346235136,1734795606449,-19026.79632601,0.0002,2]
[346235137,1734795606475,-4500.57036265,0.0002,2]
[346235138,1734795606501,-3950.0,0.0002,2]
[346235139,1734795606527,-56948.8371981,0.0002,2]
[346235140,1734795606553,-1236.25371155,0.0002,2]
[346235141,1734795606582,-2771.45120147,0.0002,7]
[346235142,1734795606608,-8025.11209977,0.0002,2]
[346235143,1734795606634,-2051.78890751,0.0002,2]
[346235144,1734795606660,-33685.90734444,0.0002,2]
[346235145,1734795606687,-811.88334894,0.0002,2]
[346235146,1734795606713,-1711.13038279,0.0002,2]
[346235147,1734795606739,-7455.806248,0.0002,7]
[346235148,1734795606769,-2791.864509,0.0002,7]
[346235149,1734795606794,-1419.340041,0.0002,7]
[346235150,1734795606832,-176171.28008677,0.0002,2]
[346235151,1734795606859,-2214.46,0.0002,2]
[346235152,1734795606885,-16904.48454148,0.0002,2]
[346235153,1734795606912,-600.0,0.0002,3]
[346235154,1734795606938,-200.0,0.0002,2]
[346235155,1734795606966,-2110.0,0.0002,2]
[346235156,1734795606995,-45465.93924963,0.0002,4]
[346235157,1734795607026,-150.0,0.0002,2]
[346235158,1734795607059,-271.902231,0.0002,2]
[346235159,1734795607086,-155.0,0.0002,2]
[346235160,1734795607113,-329.522709,0.0002,2]
[346235161,1734795607140,-239.38282726,0.0002,2]
[346235162,1734795607167,-299.48369921,0.0002,2]
[346235163,1734795607195,-354.56258692,0.0002,2]
[346235164,1734795607220,-500.0,0.0002,2]
[346235165,1734795607245,-500.0,0.0002,2]
[346235166,1734795607270,-500.0,0.0002,2]
[346235167,1734795607296,-500.0,0.0002,2]
[346235168,1734795607321,-500.0,0.0002,2]
[346235169,1734795607347,-500.0,0.0002,2]
[346235170,1734795607373,-500.0,0.0002,2]
[346235171,1734795607400,-44262.4409291,0.0002,2]
[346235172,1734795607426,-345.69929035,0.0002,2]
[346235173,1734795607455,-456.86202427,0.0002,2]
[346235174,1734795607482,-500.0,0.0002,2]
[346235175,1734795607510,-500.0,0.0002,2]
[346235176,1734795607536,-56180.46171533,0.0002,2]
[346235177,1734795607562,-500.0,0.0002,2]
[346235178,1734795607589,-500.0,0.0002,2]
[346235179,1734795607614,-500.0,0.0002,2]
[346235180,1734795607639,-500.0,0.0002,2]
[346235181,1734795607664,-500.0,0.0002,2]
[346235182,1734795607691,-500.0,0.0002,2]
[346235183,1734795607717,-500.0,0.0002,2]
[346235184,1734795607743,-500.0,0.0002,2]
[346235185,1734795607769,-500.0,0.0002,2]
[346235186,1734795607795,-500.0,0.0002,2]
[346235187,1734795607823,-703.98,0.0002,2]
[346235188,1734795607850,-500.0,0.0002,2]
[346235189,1734795607876,-500.0,0.0002,2]
[346235190,1734795607947,-500.0,0.0002,2]
[346235191,1734795607974,-485.48838837,0.0002,2]
[346235192,1734795608000,-500.0,0.0002,2]
[346235193,1734795608026,-500.0,0.0002,2]
[346235194,1734795608052,-500.0,0.0002,2]
[346235195,1734795608078,-500.0,0.0002,2]
[346235196,1734795608104,-518.08328745,0.0002,2]
[346235197,1734795608130,-500.0,0.0002,2]